fUSD/lending_fUSD_20260322
["ID","MTS","AMOUNT","RATE_DAILY","PERIOD"]
[408710050,1774164644847,-151.0,0.00015997,2]
[408710052,1774164644856,-151.0,0.00015997,2]
[408710054,1774164644866,-151.0,0.00015997,2]
[408710056,1774164644876,-155.0,0.00015999,2]
[408710058,1774164644886,-118450.04838979,0.00016,2]
[408710060,1774164644898,-1657512.76455665,0.00016,2]
[408710062,1774164644909,-138125.45620588,0.00016,2]
[408710064,1774164644918,-434.35531169,0.00016,2]
[408710066,1774164644928,-481512.35465768,0.00016,2]
[408710283,1774164646993,-500.0,0.0001305,2]
[408710285,1774164647001,-363.59094445,0.00013324,2]
[408710287,1774164647011,-621.0,0.00015012,2]
[408710289,1774164647020,-4056.6794376,0.000159,2]
[408710291,1774164647029,-504981.82947207,0.00016,2]
[408710293,1774164647038,-150.0,0.00016,2]
[408710295,1774164647047,-2399.76615046,0.00016,2]
[408710297,1774164647056,-150.0,0.00016,2]
[408710299,1774164647066,-10364.655354,0.00016,2]
[408710301,1774164647075,-200.0,0.00016,2]
[408710303,1774164647084,-151.0,0.00016,2]
[408710305,1774164647094,-1521.0,0.00016,2]
[408710307,1774164647103,-151.0,0.00016,2]
[408710309,1774164647113,-1521.0,0.00016,2]
[408710311,1774164647123,-180.65887883,0.00016,2]
[408710313,1774164647133,-1521.0,0.00016,2]
[408710315,1774164647143,-1521.0,0.00016,2]
[408710317,1774164647152,-1521.0,0.00016,2]
[408710319,1774164647162,-1521.0,0.00016,2]
[408710321,1774164647171,-1521.0,0.00016,2]
[408710323,1774164647181,-1521.0,0.00016,2]
[408710325,1774164647190,-1521.0,0.00016,2]
[408710327,1774164647200,-1521.0,0.00016,2]
[408710329,1774164647209,-1521.0,0.00016,2]
[408710331,1774164647219,-1521.0,0.00016,2]
[408710333,1774164647227,-1521.0,0.00016,2]
[408710335,1774164647237,-1521.0,0.00016,2]
[408710338,1774164647249,-1521.0,0.00016,2]
[408710340,1774164647258,-153.0,0.00016,2]
[408710342,1774164647267,-1521.0,0.00016,2]
[408710344,1774164647278,-153.0,0.00016,2]
[408710346,1774164647287,-1521.0,0.00016,2]
[408710348,1774164647298,-1521.0,0.00016,2]
[408710350,1774164647307,-1521.0,0.00016,2]
[408710352,1774164647317,-1521.0,0.00016,2]
[408710354,1774164647326,-1521.0,0.00016,2]
[408710356,1774164647335,-1521.0,0.00016,2]
[408710358,1774164647345,-1521.0,0.00016,2]
[408710360,1774164647354,-634.95984116,0.00016,2]
[408710362,1774164647364,-151.0,0.00016,2]
[408710364,1774164647374,-152.9423243,0.00016,2]
[408710366,1774164647383,-500.0,0.00016,2]
[408710368,1774164647398,-500.0,0.00016,5]
[408710370,1774164647407,-507.20464711,0.00016,2]
[408710372,1774164647417,-151.0,0.00016,2]
[408710374,1774164647427,-151.0,0.00016,2]
[408710376,1774164647438,-500.0,0.00016,2]
[408710378,1774164647447,-151.0,0.00016,2]
[408710380,1774164647457,-151.0,0.00016,2]
[408710382,1774164647468,-200.0,0.00016,2]
[408710385,1774164647480,-151.0,0.00016,2]
[408710387,1774164647490,-151.0,0.00016,2]
[408710389,1774164647500,-265.605188,0.00016,2]
[408710391,1774164647509,-265.605188,0.00016,2]
[408710393,1774164647519,-265.605188,0.00016,2]
[408710395,1774164647528,-265.605188,0.00016,2]
[408710397,1774164647538,-151.0,0.00016,2]
[408710399,1774164647548,-151.0,0.00016,2]
[408710401,1774164647557,-12553635.37763108,0.00016,2]
[408710403,1774164647567,-151.0,0.00016,2]
[408710405,1774164647577,-151.0,0.00016,2]
[408710407,1774164647586,-151.0,0.00016,2]
[408710409,1774164647595,-151.0,0.00016,2]
[408710411,1774164647604,-151.0,0.00016,2]
[408710414,1774164647615,-151.0,0.00016,2]
[408710416,1774164647624,-2000.0,0.00016,2]
[408710418,1774164647633,-151.0,0.00016,2]
[408710420,1774164647642,-151.0,0.00016,2]
[408710422,1774164647652,-500.0,0.00016,7]
[408710424,1774164647662,-19697180.99690902,0.00016,2]
[408710426,1774164647671,-998.0,0.00016,2]
[408710428,1774164647680,-250.70322,0.00016,2]
[408710430,1774164647690,-250.70323,0.00016,2]
[408710432,1774164647699,-250.70322,0.00016,2]
[408710434,1774164647709,-200.0,0.00016,2]
[408710436,1774164647719,-435.08387187,0.00016,2]
[408710438,1774164647728,-198.792267,0.00016,2]
[408710440,1774164647738,-198.792267,0.00016,2]
[408710442,1774164647748,-198.792267,0.00016,2]
[408710445,1774164647759,-632.816858,0.00016,2]
[408710447,1774164647769,-198.792267,0.00016,2]
[408710449,1774164647778,-198.792267,0.00016,2]
[408710451,1774164647788,-632.816858,0.00016,2]
[408710453,1774164647798,-198.792267,0.00016,2]
[408710455,1774164647807,-632.816858,0.00016,2]
[408710457,1774164647818,-198.792267,0.00016,2]
[408710459,1774164647828,-632.816858,0.00016,2]
[408710461,1774164647837,-198.792267,0.00016,2]
[408710463,1774164647847,-632.816858,0.00016,2]
[408710465,1774164647857,-198.792267,0.00016,2]
[408710467,1774164647866,-632.816858,0.00016,2]
[408710469,1774164647875,-198.792267,0.00016,2]
[408710471,1774164647885,-632.816858,0.00016,2]
[408710473,1774164647895,-198.792267,0.00016,2]
[408710475,1774164647905,-632.816858,0.00016,2]
[408710477,1774164647914,-198.792267,0.00016,2]
[408710479,1774164647924,-632.816858,0.00016,2]
[408710481,1774164647934,-198.792267,0.00016,2]
[408710483,1774164647943,-632.816858,0.00016,2]
[408710485,1774164647953,-198.792267,0.00016,2]
[408710487,1774164647963,-632.816858,0.00016,2]
[408710489,1774164647972,-198.792267,0.00016,2]
[408710491,1774164647982,-632.816858,0.00016,2]
[408710493,1774164647992,-198.792267,0.00016,2]
[408710496,1774164648001,-632.816858,0.00016,2]
[408710497,1774164648011,-632.816858,0.00016,2]
[408710500,1774164648021,-632.816858,0.00016,2]
[408710501,1774164648031,-632.816858,0.00016,2]
[408710504,1774164648041,-151.0,0.00016002,2]
[408710506,1774164648051,-444.0,0.00016002,2]
[408710508,1774164648060,-178.66416583,0.00016002,2]
[408710510,1774164648071,-1503.22708707,0.00016029,2]
[408710512,1774164648081,-1500.0,0.00016029,2]
[408710514,1774164648091,-1478.0,0.00016055,2]
[408710516,1774164648103,-174.0,0.00016079,3]
[408710518,1774164648112,-435.08387187,0.000161,2]
[408710520,1774164648122,-161.83,0.00016101,2]
[408710522,1774164648131,-9999.99,0.00016116,2]
[408710523,1774164648147,-2000.0,0.00016116,2]
[408710525,1774164648158,-2000.0,0.00016116,2]
[408710527,1774164648168,-2000.0,0.00016116,2]
[408710529,1774164648178,-289.12097407,0.00016121,2]
[408710532,1774164648190,-405.15,0.00016135,2]
[408710533,1774164648201,-889.0,0.00016137,2]
[408710536,1774164648210,-555.0,0.00016156,2]
[408710537,1774164648219,-6589.0,0.00016158,2]
[408710540,1774164648230,-200.0,0.0001616,2]
[408710541,1774164648240,-200.0,0.0001616,2]
[408710544,1774164648250,-153.995288,0.0001616,2]
[408710546,1774164648260,-151.0,0.0001616,2]
[408710547,1774164648270,-265.605188,0.000162,2]
[408710549,1774164648280,-265.605188,0.000162,2]
[408710551,1774164648289,-265.605188,0.000162,2]
[408710553,1774164648299,-265.605188,0.000162,2]
[408710555,1774164648309,-151.0,0.000162,2]
[408710557,1774164648318,-5000.00813917,0.000162,5]
[408710559,1774164648328,-435.08387187,0.000162,2]
[408710561,1774164648339,-2000.0,0.000162,2]
[408710563,1774164648348,-889.0,0.00016214,2]
[408710565,1774164648357,-1548.0,0.00016222,2]
[408710567,1774164648367,-153.0,0.00016231,3]
[408710569,1774164648377,-168.0,0.00016237,2]
[408710571,1774164648387,-912.28,0.00016245,2]
[408710573,1774164648398,-1392.19,0.00016275,2]
[408710575,1774164648408,-4000.0,0.00016282,2]
[408710577,1774164648419,-2000.0,0.000163,2]
[408710579,1774164648429,-168.0,0.00016314,2]
[408710581,1774164648439,-200.0,0.00016322,2]
[408710583,1774164648449,-200.0,0.00016322,2]
[408710585,1774164648458,-3598.0,0.00016325,2]
[408710587,1774164648468,-2152.0,0.00016356,2]
[408710589,1774164648478,-407.90799235,0.0001636,2]
[408710591,1774164648489,-2000.0,0.000164,2]
[408710593,1774164648498,-152.0,0.00016423,6]
[408710595,1774164648509,-202.88423595,0.00016438,2]
[408710597,1774164648518,-608.0,0.00016438,2]
[408710599,1774164648528,-608.0,0.00016438,2]
[408710601,1774164648537,-608.0,0.00016438,2]
[408710603,1774164648546,-608.0,0.00016438,2]
[408710605,1774164648555,-608.0,0.00016438,2]
[408710607,1774164648565,-608.0,0.00016438,2]
[408710609,1774164648575,-608.0,0.00016438,2]
[408710611,1774164648584,-608.0,0.00016438,2]
[408710613,1774164648594,-608.0,0.00016438,2]
[408710615,1774164648603,-608.0,0.00016438,2]
[408710617,1774164648612,-608.0,0.00016438,2]
[408710619,1774164648622,-608.0,0.00016438,2]
[408710621,1774164648632,-608.0,0.00016438,2]
[408710623,1774164648642,-608.0,0.00016438,2]
[408710625,1774164648651,-608.0,0.00016438,2]
[408710627,1774164648661,-608.0,0.00016438,2]
[408710629,1774164648670,-608.0,0.00016438,2]
[408710631,1774164648679,-608.0,0.00016438,2]
[408710633,1774164648689,-608.0,0.00016438,2]
[408710635,1774164648699,-608.0,0.00016438,2]
[408710637,1774164648709,-608.0,0.00016438,2]
[408710639,1774164648719,-608.0,0.00016438,2]
[408710641,1774164648728,-608.0,0.00016438,2]
[408710643,1774164648738,-620.51459402,0.00016438,2]
[408710645,1774164648748,-500.0,0.00016438,2]
[408710647,1774164648758,-500.0,0.00016438,2]
[408710662,1774164648890,-500.0,0.00016438,2]
[408710664,1774164648900,-500.0,0.00016438,2]
[408710666,1774164648909,-500.0,0.00016438,2]
[408710668,1774164648918,-500.0,0.00016438,2]
[408710670,1774164648927,-500.0,0.00016438,2]
[408710672,1774164648936,-500.0,0.00016438,2]
[408710674,1774164648945,-500.0,0.00016438,2]
[408710676,1774164648954,-500.0,0.00016438,2]
[408710678,1774164648964,-500.0,0.00016438,2]
[408710680,1774164648973,-500.0,0.00016438,2]
[408710682,1774164648983,-500.0,0.00016438,2]
[408710684,1774164648992,-500.0,0.00016438,2]
[408710686,1774164649001,-500.0,0.00016438,2]
[408710688,1774164649010,-500.0,0.00016438,2]
[408710690,1774164649019,-500.0,0.00016438,2]
[408710692,1774164649028,-500.0,0.00016438,2]
[408710694,1774164649039,-500.0,0.00016438,2]
[408710696,1774164649048,-500.0,0.00016438,2]
[408710698,1774164649057,-500.0,0.00016438,2]
[408710700,1774164649066,-500.0,0.00016438,2]
[408710702,1774164649076,-500.0,0.00016438,2]
[408710704,1774164649085,-500.0,0.00016438,2]
[408710706,1774164649095,-500.0,0.00016438,2]
[408710707,1774164649104,-500.0,0.00016438,2]
[408710709,1774164649113,-500.0,0.00016438,2]
[408710712,1774164649123,-500.0,0.00016438,2]
[408710713,1774164649132,-500.0,0.00016438,2]
[408710715,1774164649142,-500.0,0.00016438,2]
[408710717,1774164649151,-500.0,0.00016438,2]
[408710720,1774164649160,-500.0,0.00016438,2]
[408710721,1774164649169,-275.39935502,0.00016438,2]
[408710723,1774164649178,-537.35,0.00016438,2]
[408710725,1774164649188,-151.285302,0.00016438,2]
[408710727,1774164649198,-151.0,0.00016438,2]
[408710729,1774164649207,-151.0,0.00016438,2]
[408710731,1774164649216,-151.0,0.00016438,2]
[408710733,1774164649225,-158.696008,0.00016438,2]
[408710735,1774164649235,-158.696008,0.00016438,2]
[408710737,1774164649244,-158.696008,0.00016438,2]
[408710739,1774164649253,-158.696008,0.00016438,2]
[408710741,1774164649261,-158.696008,0.00016438,2]
[408710743,1774164649270,-158.696008,0.00016438,2]
[408710745,1774164649279,-158.696008,0.00016438,2]
[408710747,1774164649288,-158.696008,0.00016438,2]
[408710749,1774164649298,-151.0,0.00016438,2]
[408710751,1774164649307,-151.0,0.00016438,2]
[408710752,1774164649316,-151.0,0.00016438,2]
[408710754,1774164649326,-151.0,0.00016438,2]
[408710756,1774164649335,-151.0,0.00016438,2]
[408710758,1774164649345,-151.0,0.00016438,2]
[408710760,1774164649354,-152.0,0.00016438,2]
[408710762,1774164649364,-181.74307637,0.00016438,2]
[408710764,1774164649373,-418.943485,0.00016438,2]
[408710766,1774164649383,-418.943485,0.00016438,2]
[408710768,1774164649393,-418.943485,0.00016438,2]
[408710770,1774164649404,-418.943485,0.00016438,2]
[408710772,1774164649413,-418.943485,0.00016438,2]
[408710774,1774164649423,-418.943485,0.00016438,2]
[408710776,1774164649433,-418.943485,0.00016438,2]
[408710778,1774164649443,-418.943485,0.00016438,2]
[408710780,1774164649452,-151.0,0.00016438,2]
[408710782,1774164649461,-151.0,0.00016438,2]
[408710784,1774164649471,-151.0,0.00016438,2]
[408710786,1774164649480,-151.0,0.00016438,2]
[408710788,1774164649489,-277.188993,0.00016438,2]
[408710790,1774164649498,-161.0,0.00016439,2]
[408710792,1774164649508,-168.0,0.00016445,2]
[408710794,1774164649517,-168.0,0.00016469,2]
[408710796,1774164649526,-350.0,0.00016473,2]
[408710798,1774164649535,-3568.0,0.00016478,2]
[408710800,1774164649544,-646.13,0.00016482,2]
[408710802,1774164649553,-932.64,0.00016482,2]
[408710804,1774164649562,-481.43,0.00016482,2]
[408710805,1774164649571,-258.45,0.00016482,2]
[408710807,1774164649580,-200.77,0.00016482,2]
[408710810,1774164649590,-276.88,0.00016482,2]
[408710811,1774164649599,-216.43,0.00016482,2]
[408710813,1774164649608,-330.07,0.00016482,2]
[408710815,1774164649617,-346.3,0.00016482,2]
[408710817,1774164649627,-187.9,0.00016482,2]
[408710819,1774164649636,-258.01,0.00016482,2]
[408710821,1774164649645,-197.34,0.00016482,2]
[408710823,1774164649654,-207.25,0.00016482,2]
[408710825,1774164649664,-200.42,0.00016482,2]
[408710827,1774164649673,-258.9,0.00016482,2]
[408710829,1774164649683,-546.13,0.00016482,2]
[408710831,1774164649692,-226.36,0.00016482,2]
[408710833,1774164649701,-187.9,0.00016482,2]
[408710834,1774164649710,-200.0,0.00016485,2]
[408710836,1774164649721,-200.0,0.00016485,2]
[408710838,1774164649730,-343.66,0.00016495,2]
[408710840,1774164649743,-270.645,0.00016498,30]
[408710842,1774164649760,-202.98,0.00016498,30]
[408710844,1774164649769,-202.99,0.00016498,30]
[408710846,1774164649779,-5000.0,0.000165,2]
[408710848,1774164649788,-2000.0,0.000165,2]
[408710850,1774164649798,-889.0,0.00016502,2]
[408710852,1774164649807,-6458.0,0.00016573,2]
[408710854,1774164649816,-2000.0,0.00016577,2]
[408710856,1774164649825,-168.0,0.00016578,2]
[408710858,1774164649835,-889.0,0.0001658,2]
[408710860,1774164649846,-2000.0,0.000166,2]
[408710862,1774164649855,-168.0,0.00016618,2]
[408710864,1774164649864,-168.0,0.0001665,2]
[408710866,1774164649875,-200.0,0.0001665,2]
[408710868,1774164649884,-200.0,0.0001665,2]
[408710870,1774164649894,-499.99,0.0001666,2]
[408710872,1774164649903,-284.51,0.0001666,2]
[408710874,1774164649912,-499.99,0.0001666,2]
[408710876,1774164649921,-499.99,0.0001666,2]
[408710877,1774164649930,-499.99,0.0001666,2]
[408710879,1774164649939,-316.52,0.0001666,2]
[408710881,1774164649948,-999.0,0.00016663,2]
[408710883,1774164649958,-773.63658232,0.00016664,2]
[408710885,1774164649967,-744.0069204,0.00016664,2]
[408710887,1774164649976,-1749.70218425,0.00016664,2]
[408710889,1774164649987,-4000.0,0.0001667,2]
[408710891,1774164649996,-2403.0,0.00016672,2]
[408710893,1774164650006,-2403.0,0.00016677,2]
[408710895,1774164650015,-1568.0,0.00016695,2]
[408710897,1774164650025,-2000.0,0.000167,2]
[408710899,1774164650034,-4145.0,0.00016704,2]
[408710901,1774164650044,-167.14,0.00016712,2]
[408710903,1774164650053,-171.83,0.00016735,2]
[408710904,1774164650062,-174.0,0.00016737,3]
[408710905,1774164650077,-1568.0,0.00016759,2]
[408710906,1774164650086,-13549.8698,0.000168,2]
[408710907,1774164650097,-2000.0,0.000168,2]
[408710908,1774164650106,-1600.0,0.00016818,2]
[408710909,1774164650115,-700.0,0.00016822,7]
[408710910,1774164650126,-6869.0,0.00016828,2]
[408710911,1774164650136,-150.0,0.0001683,14]
[408710912,1774164650147,-3620.0,0.00016832,2]
[408710913,1774164650158,-2778.0,0.00016856,2]
[408710914,1774164650168,-4145.0,0.00016856,2]
[408710915,1774164650180,-405.15,0.00016868,2]
[408710916,1774164650192,-154.38343801,0.00016885,2]
[408710917,1774164650202,-6277.37090804,0.00016888,2]
[408710918,1774164650215,-2000.0,0.000169,2]
[408710919,1774164650224,-161.83,0.00016949,2]
[408710920,1774164650234,-2000.0,0.00016953,2]
[408710921,1774164650243,-168.0,0.00016974,2]
[408710922,1774164650255,-912.28,0.00016983,2]
[408710923,1774164650264,-300.0,0.00016999,2]
[408710925,1774164650273,-300.0,0.00016999,2]
[408710926,1774164650283,-300.0,0.00016999,2]
[408710929,1774164650292,-300.0,0.00016999,2]
[408710930,1774164650302,-300.0,0.00016999,2]
[408710932,1774164650311,-300.0,0.00016999,2]
[408710934,1774164650320,-309.97375767,0.00016999,2]
[408710936,1774164650328,-300.0,0.00016999,2]
[408710938,1774164650338,-142645.8540375,0.00017,2]
[408710940,1774164650348,-5000.0,0.00017,2]
[408710942,1774164650357,-175.05,0.00017,2]
[408710945,1774164650368,-132831.10998485,0.00017,2]
[408710946,1774164650377,-173.3012,0.00017,2]
[408710949,1774164650390,-173.3012,0.00017,2]
[408710950,1774164650401,-173.3012,0.00017,2]
[408710953,1774164650410,-173.3012,0.00017,2]
[408710954,1774164650419,-173.3012,0.00017,2]
[408710956,1774164650428,-173.3012,0.00017,2]
[408710958,1774164650439,-1500.0,0.00017,2]
[408710960,1774164650448,-1500.0,0.00017,2]
[408710962,1774164650457,-2594.172265,0.00017,2]
[408710964,1774164650467,-300.0,0.00017,2]
[408710966,1774164650477,-680825.78746956,0.00017,2]
[408710968,1774164650486,-168.0,0.00017006,2]
[408710970,1774164650496,-7456.0,0.00017025,2]
[408710972,1774164650505,-4000.0,0.00017058,2]
[408710974,1774164650515,-600.0,0.00017096,7]
[408710976,1774164650525,-700.0,0.00017096,7]
[408710978,1774164650535,-154.94866963,0.00017097,2]
[408710980,1774164650545,-350.0,0.00017098,2]
[408710982,1774164650555,-73184.29773629,0.000171,2]
[408710984,1774164650564,-151.0,0.000171,2]
[408710986,1774164650574,-198.792267,0.000171,2]
[408710988,1774164650584,-632.816858,0.000171,2]
[408710990,1774164650595,-198.792267,0.000171,2]
[408710992,1774164650604,-632.816858,0.000171,2]
[408710994,1774164650614,-198.792267,0.000171,2]
[408710996,1774164650624,-632.816858,0.000171,2]
[408710998,1774164650633,-198.792265,0.000171,2]
[408711000,1774164650643,-632.816856,0.000171,2]
[408711002,1774164650652,-152.0,0.0001711,7]
[408711004,1774164650662,-2500.0,0.00017125,2]
[408711006,1774164650671,-153.0,0.00017192,3]
[408711007,1774164650680,-168.0,0.00017199,2]
[408711009,1774164650690,-590.1037,0.000173,2]
[408711011,1774164650698,-163.0,0.00017317,2]
[408711013,1774164650708,-152.0,0.00017339,4]
[408711015,1774164650718,-174.0,0.00017395,3]
[408711017,1774164650726,-1568.0,0.00017399,2]
[408711019,1774164650736,-2000.0,0.0001744,2]
[408711021,1774164650745,-2403.0,0.00017463,2]
[408711023,1774164650754,-1725.0,0.00017481,2]
[408711025,1774164650764,-350.0,0.00017486,2]
[408711027,1774164650773,-5000.0,0.000175,2]
[408711029,1774164650783,-229.47,0.0001751,2]
[408711031,1774164650792,-525.76,0.0001751,2]
[408711033,1774164650803,-270.82,0.0001751,2]
[408711035,1774164650812,-209.2,0.0001751,2]
[408711037,1774164650822,-258.44,0.0001751,2]
[408711039,1774164650831,-228.46,0.0001751,2]
[408711041,1774164650840,-202.42,0.0001751,2]
[408711043,1774164650854,-1314.49,0.0001751,2]
[408711045,1774164650865,-310.89,0.0001751,2]
[408711047,1774164650875,-191.38,0.0001751,2]
[408711049,1774164650885,-187.9,0.0001751,2]
[408711051,1774164650894,-2403.0,0.00017534,2]
[408711053,1774164650904,-155.0,0.00017599,2]
[408711055,1774164650912,-3304.38,0.000176,2]
[408711057,1774164650922,-165.267966,0.0001764,7]
[408711059,1774164650931,-2496.98,0.00017645,2]
[408711061,1774164650941,-310.0,0.00017654,2]
[408711063,1774164650950,-487.0,0.00017654,2]
[408711065,1774164650960,-233.532855,0.00017664,7]
[408711067,1774164650969,-3000.0,0.00017673,2]
[408711069,1774164650979,-1460.56,0.000177,2]
[408711071,1774164650988,-211.46,0.000177,2]
[408711073,1774164650997,-2358.65,0.000177,2]
[408711075,1774164651006,-7279.16,0.000177,2]
[408711077,1774164651015,-787.83165234,0.000177,2]
[408711079,1774164651025,-912.28,0.00017722,2]
[408711081,1774164651035,-5782.8,0.00017733,2]
[408711083,1774164651044,-275154.3078049,0.00017743,2]
[408711085,1774164651053,-270.1,0.00017778,2]
[408711086,1774164651061,-161.83,0.00017796,2]
[408711087,1774164651071,-152.0,0.00017797,8]
[408711088,1774164651081,-1506.46,0.000178,2]
[408711089,1774164651099,-1253.33,0.000178,2]
[408711090,1774164651108,-2256.27,0.000178,2]
[408711091,1774164651117,-500.0,0.00017808,2]
[408711092,1774164651127,-800.0,0.00017808,2]
[408711093,1774164651136,-2403.0,0.00017854,2]
[408711094,1774164651145,-1008.72114585,0.0001786,2]
[408711095,1774164651154,-270.645,0.00017868,30]
[408711096,1774164651163,-202.98,0.00017868,30]
[408711097,1774164651173,-202.98,0.00017868,30]
[408711098,1774164651184,-1230.77228765,0.0001789,2]
[408711099,1774164651193,-1078.49541417,0.0001789,2]
[408711100,1774164651203,-700.0,0.00017918,7]
[408711101,1774164651213,-270.1,0.00017955,2]
[408711102,1774164651222,-20000.0,0.0001799,2]
[408711103,1774164651232,-4627.0,0.00017999,2]
[408711104,1774164651241,-9308.0,0.00018,2]
[408711105,1774164651251,-151.0,0.00018,2]
[408711106,1774164651260,-110152.46779956,0.00018,2]
[408711107,1774164651269,-1199.51412745,0.00018,2]
[408711108,1774164651279,-309.27107728,0.00018,2]
[408711109,1774164651289,-152.39372009,0.00018,2]
[408711110,1774164651298,-200.0,0.00018,2]
[408711111,1774164651308,-6204.34,0.00018005,2]
[408711112,1774164651318,-1345.0,0.00018012,2]
[408711114,1774164651454,-2466.0,0.00018012,2]
[408711115,1774164651466,-621.0,0.00018012,2]
[408711116,1774164651475,-824.87,0.00018024,2]
[408711117,1774164651485,-174.0,0.00018053,3]
[408711118,1774164651494,-1790.14634462,0.000181,2]
[408711119,1774164651503,-270.09225979,0.00018133,2]
[408711120,1774164651513,-153.0,0.00018154,3]
[408711121,1774164651522,-600.0,0.00018192,7]
[408711122,1774164651531,-700.0,0.00018192,7]
[408711123,1774164651541,-3500.0,0.00018221,2]
[408711124,1774164651550,-300.0,0.00018355,2]
[408711125,1774164651559,-300.0,0.00018355,2]
[408711126,1774164651568,-300.0,0.00018355,2]
[408711127,1774164651577,-300.0,0.00018355,2]
[408711129,1774164651586,-300.0,0.00018355,2]
[408711131,1774164651597,-89060.66,0.00018356,2]
[408711133,1774164651606,-152.0,0.00018484,9]
[408711135,1774164651615,-1600.0,0.000185,2]
[408711137,1774164651625,-1396.0,0.00018514,2]
[408711138,1774164651634,-776.0608,0.000186,2]
[408711139,1774164651643,-161.83,0.00018643,2]
[408711140,1774164651652,-2000.0,0.00018648,2]
[408711141,1774164651661,-150.0,0.00018661,2]
[408711142,1774164651670,-150.0,0.00018661,2]
[408711143,1774164651679,-1261.0,0.00018661,2]
[408711144,1774164651689,-1215.0,0.00018661,2]
[408711145,1774164651698,-924.0,0.00018661,2]
[408711146,1774164651708,-174.0,0.00018711,3]
[408711147,1774164651717,-4000.0,0.00018769,2]
[408711148,1774164651727,-168.17,0.00018855,2]
[408711149,1774164651736,-168.17,0.00018855,2]
[408711150,1774164651745,-451.34642308,0.0001887,2]
[408711151,1774164651754,-1600.0,0.00018904,2]
[408711152,1774164651764,-300.0,0.00018917,2]
[408711153,1774164651773,-300.0,0.00018917,2]
[408711154,1774164651789,-1267.3297768,0.00018918,2]
[408711155,1774164651810,-5451.760413,0.00018918,2]
[408711156,1774164651827,-84889.8738535,0.00018918,2]
[408711157,1774164651838,-300.0,0.00018924,2]
[408711158,1774164651850,-300.0,0.00018924,2]
[408711159,1774164651859,-300.0,0.00018924,2]
[408711160,1774164651870,-300.0,0.00018924,2]
[408711161,1774164651882,-646.13,0.00018954,2]
[408711162,1774164651902,-777.2,0.00018954,2]
[408711163,1774164651920,-401.19,0.00018954,2]
[408711164,1774164651931,-150.0,0.00018954,2]
[408711165,1774164651942,-230.73,0.00018954,2]
[408711166,1774164651954,-216.43,0.00018954,2]
[408711167,1774164651963,-275.06,0.00018954,2]
[408711168,1774164651974,-288.58,0.00018954,2]
[408711169,1774164651985,-187.9,0.00018954,2]
[408711170,1774164651996,-150.0,0.00018954,2]
[408711171,1774164652007,-215.75,0.00018954,2]
[408711172,1774164652018,-455.11,0.00018954,2]
[408711173,1774164652028,-500.0,0.00018959,2]
[408711174,1774164652038,-300.0,0.00018999,2]
[408711175,1774164652048,-300.0,0.00018999,2]